bitfinex/quotes_SOLUSD_20250701
["timestamp","ask_amount","ask_price","bid_price","bid_amount"]
[1751398951489,9.49741149,145.85,145.83,0.1]
[1751398953009,9.49741149,145.86,145.83,0.1]
[1751398953726,0.2,145.88,145.83,0.1]
[1751398953897,9.49741149,145.87,145.83,0.1]
[1751398954101,9.49741149,145.86,145.83,0.1]
[1751398956000,0.2,145.88,145.83,9.59741149]
[1751398956307,0.2,145.88,145.83,0.1]
[1751398956308,0.2,145.85,145.83,0.1]
[1751398957315,9.49741149,145.84,145.83,0.1]
[1751398960710,16.35424089,145.84,145.83,0.1]
[1751398962535,9.49741149,145.84,145.83,0.1]
[1751398963726,0.2,145.85,145.83,0.1]
[1751398963924,9.49741149,145.84,145.83,0.1]
[1751398967621,16.35424089,145.84,145.83,0.1]
[1751398968031,9.49741149,145.84,145.83,0.1]
[1751398969825,5.54084307,145.84,145.83,0.1]
[1751398970918,0.2,145.85,145.83,0.1]
[1751398971106,5.54084307,145.84,145.83,0.1]
[1751398972011,5.74084307,145.85,145.83,0.1]
[1751398972318,0.2,145.85,145.84,5.54084307]
[1751398978234,0.2,145.85,145.84,24.19049193]
[1751398978727,0.6118,145.85,145.84,24.19049193]
[1751398979730,0.6118,145.85,145.84,18.64964886]
[1751398979939,0.6118,145.85,145.84,24.19049193]
[1751398981555,0.6118,145.85,145.84,5.54084307]
[1751398982244,0.6118,145.85,145.83,7.27834307]
[1751398982613,0.6118,145.85,145.84,5.54084307]
[1751398983122,0.6118,145.85,145.84,24.3326535]
[1751398983931,0.6118,145.85,145.84,174.21697664]
[1751398984131,0.2,145.88,145.87,44.933972]
[1751398984317,0.2,145.88,145.87,56.78621507]
[1751398984517,0.2,145.88,145.87,50.96104886]
[1751398984710,0.2,145.88,145.85,18.64964886]
[1751398984917,0.2,145.88,145.86,5.54084307]
[1751398985127,0.2,145.88,145.87,5.54084307]
[1751398985334,0.2,145.88,145.86,5.54084307]
[1751398986746,0.2,145.88,145.85,24.19049193]
[1751398987843,0.2,145.88,145.86,5.54084307]
[1751398988049,0.2,145.88,145.87,5.54084307]
[1751398989345,0.2,145.88,145.87,50.19049193]
[1751398992628,0.2,145.88,145.87,50.3326535]
[1751398993721,0.2,145.88,145.87,52.12917664]
[1751398993959,0.2,145.9,145.89,26.0]
[1751398994162,0.2,145.9,145.89,31.82516621]
[1751398995363,0.2,145.9,145.89,50.61697664]
[1751398995858,0.2,145.9,145.89,56.81517664]
[1751398998125,0.2,145.9,145.89,44.64964886]
[1751398998330,0.2,145.9,145.87,7.9]
[1751398998547,5.74084307,145.9,145.87,7.9]
[1751398998741,5.54084307,145.89,145.87,7.9]
[1751398999936,0.2,145.9,145.87,7.9]
[1751399000137,5.74084307,145.9,145.87,7.9]
[1751399000565,0.2,145.9,145.88,5.54084307]
[1751399000768,0.2,145.9,145.89,50.61697664]
[1751399000951,0.2,145.9,145.89,52.92562458]
[1751399001143,0.2,145.9,145.89,52.24017664]
[1751399001539,0.2,145.9,145.89,26.24017664]
[1751399003841,0.2,145.9,145.89,39.65825357]
[1751399004572,0.2,145.9,145.89,30.17879357]
[1751399005372,0.2,145.9,145.89,39.65825357]
[1751399006186,0.2,145.9,145.89,28.12910886]
[1751399006851,0.2,145.9,145.89,54.413432]
[1751399007048,0.2,145.9,145.89,28.413432]
[1751399007256,0.2,145.9,145.89,28.55559357]
[1751399007945,0.2,145.9,145.89,54.55559357]
[1751399008146,0.2,145.9,145.89,28.55559357]
[1751399008940,0.2,145.9,145.89,54.55559357]
[1751399009139,0.2,145.9,145.89,64.03505357]
[1751399009552,0.2,145.9,145.89,38.03505357]
[1751399010243,0.2,145.9,145.89,28.55559357]
[1751399017883,0.2,145.9,145.89,19.07613357]
[1751399018074,0.2,145.9,145.89,28.55559357]
[1751399021084,0.2,145.9,145.89,38.03505357]
[1751399021262,0.2,145.9,145.89,188.32050151]
[1751399021461,0.2,145.9,145.89,187.63505357]
[1751399021776,0.2,145.9,145.89,216.69505357]
[1751399022584,0.2,145.9,145.89,187.63505357]
[1751399022776,0.2,145.9,145.89,216.69505357]
[1751399023795,0.2,145.9,145.89,203.26628879]
[1751399024696,0.2,145.91,145.9,19.07613357]
[1751399024999,0.2,145.91,145.9,194.24964886]
[1751399025160,0.2,145.91,145.9,199.77980408]
[1751399025887,0.2,145.91,145.9,199.92196565]
[1751399028483,0.2,145.91,145.9,50.32196565]
[1751399028681,0.2,145.91,145.9,50.60628879]
[1751399031492,0.2,145.91,145.9,44.79181043]
[1751399031682,5.73015522,145.91,145.88,0.1]
[1751399031865,0.2,145.91,145.88,26.1]
[1751399032066,0.2,145.91,145.9,5.53015522]
[1751399032291,0.2,145.91,145.89,24.17980408]
[1751399032799,0.2,145.94,145.9,53.66628879]
[1751399032967,0.2,145.94,145.93,50.32196565]
[1751399033166,0.2,145.94,145.93,79.38196565]
[1751399034883,0.2,145.94,145.93,87.26196565]
[1751399035191,0.2,145.94,145.93,87.54628879]
[1751399040892,0.2,145.94,145.93,58.20196565]
[1751399041076,0.2,145.94,145.93,87.26196565]
[1751399042171,0.2,145.94,145.93,87.54628879]
[1751399043972,0.2,145.94,145.93,52.67181043]
[1751399044175,13.86555522,145.94,145.9,0.2]
[1751399044384,5.53015522,145.92,145.9,0.2]
[1751399046102,8.3354,145.94,145.9,0.2]
[1751399046303,5.53015522,145.92,145.9,0.2]
[1751399046498,5.53015522,145.93,145.9,0.2]
[1751399048906,8.3354,145.94,145.9,24.52196565]
[1751399049095,13.86555522,145.94,145.9,24.52196565]
[1751399049776,1.7126,145.94,145.9,24.52196565]
[1751399050103,1.7126,145.94,145.93,24.32196565]
[1751399050104,0.2,145.94,145.93,24.32196565]
[1751399051390,0.2,145.94,145.91,26.0]
[1751399051595,0.2,145.94,145.93,26.0]
[1751399053615,0.2,145.94,145.93,31.53015522]
[1751399053906,0.2,145.94,145.93,50.32196565]
[1751399054206,0.2,145.94,145.93,58.18196565]
[1751399054410,0.2,145.94,145.93,58.46628879]
[1751399055795,0.2,145.94,145.93,52.93613357]
[1751399055998,0.2,145.94,145.93,58.46628879]
[1751399060009,0.2,145.94,145.93,63.99644401]
[1751399060213,0.2,145.94,145.93,52.93613357]
[1751399060518,0.2,145.96,145.94,19.07613357]
[1751399060812,0.2,145.96,145.95,59.17644401]
[1751399062597,0.2,145.96,145.95,48.11613357]
[1751399062909,0.2,145.96,145.95,53.64628879]
[1751399064817,0.2,145.96,145.95,48.11613357]
[1751399065007,0.2,145.96,145.95,53.64628879]
[1751399067599,0.2,145.96,145.95,59.17644401]
[1751399069694,0.2,145.96,145.95,53.64628879]
[1751399070121,0.2,145.96,145.95,59.17644401]
[1751399070622,0.2,145.96,145.95,50.32196565]
[1751399071323,0.2,145.96,145.95,18.64964886]
[1751399071512,0.2,145.96,145.93,13.39015522]
[1751399071703,0.2,145.96,145.94,31.53015522]
[1751399071903,0.2,145.96,145.95,24.17980408]
[1751399072231,0.2,145.96,145.95,26.0]
[1751399074132,0.2,145.96,145.95,31.53015522]
[1751399074421,0.2,145.96,145.95,26.0]
[1751399076723,0.2,145.96,145.95,31.53015522]
[1751399078206,0.2,145.96,145.95,50.32196565]
[1751399078606,0.2,145.96,145.95,44.79181043]
[1751399078828,0.2,145.96,145.95,50.32196565]
[1751399080232,0.2,145.96,145.95,44.79181043]
[1751399081923,0.2,145.96,145.95,50.32196565]
[1751399083937,0.2,145.96,145.95,44.79181043]
[1751399084114,0.2,145.96,145.95,50.32196565]
[1751399090829,0.2,145.96,145.95,44.79181043]
[1751399092032,0.2,145.96,145.95,26.0]
[1751399097438,0.2,145.96,145.94,5.73015522]
[1751399101343,0.2,145.96,145.95,24.32196565]
[1751399101544,0.2,145.96,145.95,18.79181043]
[1751399102044,0.2,145.96,145.95,24.32196565]
[1751399102454,0.2,145.96,145.95,56.13644401]
[1751399102661,0.2,145.96,145.95,179.73644401]
[1751399102946,0.2,145.96,145.95,187.82564401]
[1751399103742,0.1,146.0,145.99,44.79181043]
[1751399103939,0.1,146.0,145.99,50.32196565]
[1751399105327,0.1,146.0,145.99,50.60628879]
[1751399105746,0.1,146.0,145.99,45.07613357]
[1751399106027,0.1,146.0,145.99,50.60628879]
[1751399106649,0.1,146.0,145.99,79.58628879]
[1751399108647,0.1,146.0,145.99,44.79181043]
[1751399108946,0.1,146.0,145.99,18.79181043]
[1751399109126,0.1,146.0,145.99,50.32196565]
[1751399115732,0.1,146.0,145.99,44.79181043]
[1751399115944,0.1,146.0,145.99,50.32196565]
[1751399119177,0.1,146.0,145.99,50.60628879]
[1751399119338,0.1,146.0,145.99,79.54628879]
[1751399119541,0.1,146.0,145.99,53.54628879]
[1751399119856,0.1,146.0,145.99,54.23126721]
[1751399120240,0.1,146.0,145.99,48.70111199]
[1751399120447,0.1,146.0,145.99,53.54628879]
[1751399121481,0.1,146.0,145.97,18.79181043]
[1751399121647,0.1,146.0,145.99,5.67231679]
[1751399121978,0.1,146.0,145.99,24.60628879]
[1751399126866,0.1,146.02,146.01,44.933972]
[1751399127073,0.1,146.06,146.05,44.933972]
[1751399127247,5.53015522,146.15,146.07,0.28432314]
[1751399127449,5.53015522,146.14,146.1,5.53015522]
[1751399128448,5.53015522,146.13,146.09,5.53015522]
[1751399129463,5.53015522,146.12,146.08,5.53015522]
[1751399129650,5.53015522,146.11,146.07,13.35015522]
[1751399130054,6.84262126,146.15,146.07,13.35015522]
[1751399130286,5.53015522,146.11,146.07,13.35015522]
[1751399130573,5.53015522,146.09,146.07,7.82]
[1751399131164,7.08705522,146.11,146.07,7.82]
[1751399131858,5.53015522,146.1,146.07,7.82]
[1751399132265,1.5569,146.11,146.07,7.82]
[1751399132476,5.53015522,146.1,146.07,7.82]
[1751399134356,1.5569,146.11,146.07,7.82]
[1751399134563,5.53015522,146.11,146.07,13.35015522]
[1751399134883,31.53015522,146.08,145.97,1.5954]
[1751399135061,5.53015522,146.01,146.0,7.82]
[1751399137270,6.1963,146.07,146.0,7.82]
[1751399137466,26.0,146.04,146.0,7.82]
[1751399137668,5.53015522,146.03,146.0,7.82]
[1751399137876,5.53015522,146.04,146.0,7.82]
[1751399138082,5.53015522,146.04,146.0,13.35015522]
[1751399138789,6.1963,146.07,146.0,13.35015522]
[1751399138995,5.53015522,146.06,146.01,18.79181043]
[1751399139219,5.53015522,146.06,146.02,5.53015522]
[1751399139693,27.5243,146.09,146.02,5.53015522]
[1751399139877,5.53015522,146.07,146.03,5.67231679]
[1751399140074,5.53015522,146.09,146.05,5.53015522]
[1751399141897,6.2632,146.11,146.03,0.14216157]
[1751399142072,5.53015522,146.08,146.04,5.53015522]
[1751399142586,5.53015522,146.09,146.05,5.53015522]
[1751399142764,27.5236,146.13,146.05,5.53015522]
[1751399143085,5.53015522,146.1,146.05,5.53015522]
[1751399145069,5.53015522,146.09,146.05,5.53015522]
[1751399146283,0.1,146.12,146.05,5.53015522]
[1751399146493,5.53015522,146.09,146.05,5.53015522]
[1751399147001,0.1,146.12,146.05,5.53015522]
[1751399147287,5.53015522,146.09,146.05,5.53015522]
[1751399151095,0.1,146.12,146.05,5.53015522]
[1751399151288,5.53015522,146.09,146.05,5.53015522]
[1751399151689,5.53015522,146.08,146.04,5.53015522]
[1751399152692,0.1,146.12,146.04,5.53015522]
[1751399152997,5.53015522,146.08,146.04,5.53015522]
[1751399156293,0.1,146.12,146.05,5.53015522]
[1751399156599,5.53015522,146.09,146.05,5.53015522]
[1751399160202,5.53015522,146.08,146.03,0.14216157]
[1751399160409,5.53015522,146.06,146.03,0.14216157]
[1751399161608,5.53015522,146.06,146.05,0.2]
[1751399162109,5.53015522,146.07,146.05,0.2]
[1751399162685,5.53015522,146.08,146.05,0.2]
[1751399163709,5.63015522,146.09,146.05,5.73015522]
[1751399166208,5.53015522,146.07,146.05,0.2]
[1751399169493,0.1,146.09,146.05,0.2]
[1751399169694,5.53015522,146.08,146.05,0.2]
[1751399171029,5.53015522,146.07,146.05,0.2]
[1751399171518,5.53015522,146.08,146.05,0.2]
[1751399172514,0.1,146.09,146.05,0.2]
[1751399172515,5.53015522,146.07,146.05,0.2]
[1751399173223,0.1,146.09,146.05,0.2]
[1751399173406,5.53015522,146.07,146.05,0.2]
[1751399175805,5.53015522,146.06,146.05,0.2]
[1751399176006,5.53015522,146.07,146.05,0.2]
[1751399176523,5.53015522,146.08,146.05,0.2]
[1751399177314,5.53015522,146.07,146.05,0.2]
[1751399181521,0.1,146.09,146.05,0.2]
[1751399181832,5.53015522,146.08,146.05,0.2]
[1751399182314,0.1,146.09,146.05,5.73015522]
[1751399182628,5.63015522,146.09,146.05,5.73015522]
[1751399183329,5.63015522,146.09,146.05,0.2]
[1751399185231,0.1,146.09,146.05,0.2]
[1751399185409,0.1,146.09,146.05,7.33205522]
[1751399185815,5.63015522,146.09,146.05,7.33205522]
[1751399188022,0.1,146.09,146.05,7.33205522]
[1751399188418,5.63015522,146.09,146.05,7.33205522]
[1751399188618,5.63015522,146.09,146.05,1.8019]
[1751399188820,5.63015522,146.09,146.05,18.84964886]
[1751399189630,5.53015522,146.08,146.05,18.84964886]
[1751399190529,5.53015522,146.07,146.05,0.2]
[1751399193328,0.1,146.09,146.05,0.2]
[1751399193529,5.53015522,146.08,146.05,0.2]
[1751399195616,5.63015522,146.09,146.05,0.2]
[1751399197830,5.53015522,146.08,146.05,0.2]
[1751399198538,5.53015522,146.06,146.05,0.2]
[1751399199332,12.37665665,146.06,145.99,0.2]
[1751399199532,5.53015522,146.0,145.99,0.2]
[1751399199835,5.53015522,146.04,146.0,0.14216157]
[1751399200137,5.53015522,146.04,146.0,5.67231679]
[1751399200833,27.5383,146.08,146.0,0.14216157]
[1751399201043,5.53015522,146.04,146.0,0.14216157]
[1751399201434,27.5383,146.08,146.0,0.14216157]
[1751399201620,5.53015522,146.04,146.0,0.14216157]
[1751399205851,5.53015522,146.04,146.0,5.53015522]
[1751399206430,5.53015522,146.05,146.01,5.53015522]
[1751399206949,5.53015522,146.06,146.02,5.53015522]
[1751399208155,5.53015522,146.07,146.02,5.53015522]
[1751399211557,5.53015522,146.06,146.02,5.53015522]
[1751399212158,5.53015522,146.05,146.01,26.0]
[1751399212333,5.53015522,146.04,146.01,26.0]
[1751399212950,5.53015522,146.04,146.0,18.99181043]
[1751399214047,5.53015522,146.03,146.0,18.99181043]
[1751399214550,5.53015522,146.04,146.0,18.99181043]
[1751399216356,5.53015522,146.04,146.0,24.52196565]
[1751399219273,5.63015522,146.09,146.0,24.52196565]
[1751399219465,0.1,146.09,146.02,5.67231679]
[1751399219635,5.53015522,146.06,146.02,5.67231679]
[1751399224240,0.1,146.09,146.03,7.09945522]
[1751399224548,5.53015522,146.08,146.03,7.09945522]
[1751399224847,5.53015522,146.07,146.03,7.09945522]
[1751399227855,0.1,146.06,146.03,7.09945522]
[1751399228157,0.1,146.06,146.04,5.53015522]
[1751399228361,0.1,146.06,146.05,5.67231679]
[1751399230154,0.1,146.06,146.05,39.63663993]
[1751399230350,0.1,146.06,146.05,40.91628581]
[1751399234162,0.1,146.09,146.08,26.14216157]
[1751399234349,0.1,146.09,146.08,31.67231679]
[1751399234551,0.1,146.09,146.08,50.60628879]
[1751399241378,0.1,146.09,146.08,44.79181043]
[1751399241578,0.1,146.09,146.08,50.32196565]
[1751399241893,0.1,146.09,146.08,50.60628879]
[1751399242098,0.1,146.09,146.08,56.13644401]
[1751399242391,0.1,146.09,146.08,50.60628879]
[1751399242561,0.1,146.09,146.08,61.63899908]
[1751399242964,0.1,146.09,146.08,90.31899908]
[1751399244580,0.1,146.09,146.08,91.96249908]
[1751399245590,0.1,146.12,146.11,44.79181043]
[1751399245755,0.1,146.12,146.11,50.32196565]
[1751399246265,0.1,146.12,146.11,52.24978879]
[1751399249265,0.1,146.12,146.11,201.84978879]
[1751399249689,0.1,146.13,146.12,19.07613357]
[1751399249868,0.1,146.15,146.14,45.07613357]
[1751399250076,0.1,146.15,146.14,79.95056414]
[1751399251180,0.1,146.15,146.14,85.48071936]
[1751399252886,0.1,146.17,146.15,19.07613357]
[1751399253057,0.1,146.17,146.16,60.97262572]
[1751399254298,5.53015522,146.28,146.21,18.64964886]
[1751399254465,5.53015522,146.25,146.21,31.83980408]
[1751399255073,5.53015522,146.26,146.21,31.83980408]
[1751399255278,5.53015522,146.27,146.23,18.64964886]
[1751399255568,5.53015522,146.27,146.23,24.17980408]
[1751399255784,5.53015522,146.27,146.23,18.64964886]
[1751399255969,5.53015522,146.26,146.21,13.19015522]
[1751399256167,5.53015522,146.26,146.22,18.64964886]
[1751399256583,6.5282,146.28,146.22,18.64964886]
[1751399256584,5.53015522,146.25,146.22,18.64964886]
[1751399257085,5.53015522,146.24,146.21,7.66]
[1751399257288,5.53015522,146.24,146.21,26.30964886]
[1751399257861,1.5162,146.27,146.21,26.30964886]
[1751399258069,1.5162,146.27,146.21,31.83980408]
[1751399258391,5.53015522,146.25,146.21,31.83980408]
[1751399258568,1.5162,146.27,146.21,31.83980408]
[1751399258885,5.53015522,146.25,146.21,31.83980408]
[1751399260894,5.53015522,146.25,146.22,5.03048497]
[1751399261192,5.53015522,146.25,146.23,5.03048497]
[1751399261401,1.5162,146.27,146.24,5.03048497]
[1751399261573,5.53015522,146.25,146.21,26.30964886]
[1751399261771,5.53015522,146.23,146.22,5.03002671]
[1751399262476,5.53015522,146.24,146.22,5.03002671]
[1751399262671,5.53015522,146.24,146.21,7.66]
[1751399262871,5.53015522,146.24,146.22,5.03247303]
[1751399263195,5.53015522,146.24,146.23,5.03247303]
[1751399263570,0.1,146.25,146.23,5.03247303]
[1751399263769,5.53015522,146.24,146.21,7.66]
[1751399264098,0.1,146.25,146.22,5.03327661]
[1751399264391,5.63015522,146.25,146.23,5.03327661]
[1751399264595,5.63015522,146.25,146.24,5.03327661]
[1751399266298,0.1,146.25,146.24,5.03327661]
[1751399268088,0.1,146.25,146.24,29.21308069]
[1751399268774,0.1,146.25,146.24,23.68292547]
[1751399271096,0.1,146.25,146.24,29.21308069]
[1751399272590,0.1,146.25,146.24,23.68292547]
[1751399272777,0.1,146.25,146.24,29.21308069]
[1751399274605,0.1,146.25,146.24,23.68292547]
[1751399278409,0.1,146.25,146.24,5.03327661]
[1751399280310,5.63015522,146.25,146.24,5.03327661]
[1751399286511,0.1,146.25,146.24,5.03327661]
[1751399286712,5.63015522,146.25,146.24,5.03327661]
[1751399290339,2.20480081,146.25,146.24,5.03327661]
[1751399295097,2.30480081,146.25,146.24,5.03327661]
[1751399298210,0.1,146.25,146.24,5.03327661]
[1751399298412,5.63015522,146.25,146.24,5.03327661]
[1751399304129,0.1,146.25,146.24,5.03327661]
[1751399304639,0.1,146.25,146.24,29.21308069]
[1751399310330,0.1,146.25,146.24,23.68292547]
[1751399310518,0.1,146.25,146.24,29.21308069]
[1751399311029,0.1,146.25,146.24,5.03327661]
[1751399311231,5.63015522,146.25,146.24,5.03327661]
[1751399311536,5.63015522,146.25,146.24,5.23327661]
[1751399319141,0.1,146.25,146.24,5.23327661]
[1751399320842,0.1,146.25,146.24,0.2]
[1751399321538,0.1,146.25,146.24,5.3039465]
[1751399323128,5.63015522,146.25,146.24,5.3039465]
[1751399323628,0.1,146.25,146.24,5.3039465]
[1751399324955,5.63015522,146.25,146.24,5.3039465]
[1751399325154,11.16031044,146.25,146.24,5.3039465]
[1751399328151,17.99791727,146.25,146.24,5.3039465]
[1751399329052,26.0,146.22,146.19,0.2]
[1751399329225,5.53015522,146.2,146.19,0.2]
[1751399335257,26.0,146.22,146.19,0.2]
[1751399335561,5.53015522,146.2,146.19,0.2]
[1751399338072,26.0,146.23,146.19,0.2]
[1751399338233,5.53015522,146.22,146.19,0.2]
[1751399338743,5.53015522,146.23,146.19,0.2]
[1751399339447,5.53015522,146.22,146.19,0.2]
[1751399341163,5.53015522,146.22,146.2,5.09418474]
[1751399341375,5.53015522,146.21,146.19,0.2]
[1751399341558,5.53015522,146.23,146.2,5.09394243]
[1751399341748,5.53015522,146.21,146.19,0.2]
[1751399342064,5.53015522,146.2,146.19,0.2]
[1751399342264,5.53015522,146.2,146.19,5.3036887]
[1751399345066,5.53015522,146.2,146.19,5.30100479]
[1751399350452,31.53015522,146.23,146.19,5.30100479]
[1751399350660,5.53015522,146.2,146.19,0.2]
[1751399350860,5.53015522,146.2,146.19,5.29843077]
[1751399351775,26.0,146.23,146.19,5.29843077]
[1751399351982,5.53015522,146.2,146.19,0.2]
[1751399368091,38.36887486,146.23,146.19,0.01573328]
[1751399368268,5.53015522,146.2,146.19,0.01573328]
[1751399371796,3.52944475,146.2,146.19,0.01573328]
[1751399378107,3.62944475,146.2,146.18,0.2]
[1751399378306,3.52944475,146.19,146.18,0.2]
[1751399379425,3.62944475,146.2,146.18,0.2]
[1751399380932,3.52944475,146.19,146.18,0.2]
[1751399391040,0.1,146.2,146.18,0.2]
[1751399391336,0.1,146.2,146.18,3.72944475]
[1751399391839,0.1,146.2,146.19,5.15734475]
[1751399393114,0.1,146.2,146.19,1.6279]
[1751399393321,3.62944475,146.2,146.18,0.2]
[1751399394841,0.1,146.19,146.18,0.2]
[1751399396526,5.61354408,146.19,146.18,0.2]
[1751399397746,0.1,146.19,146.18,0.2]
[1751399397929,0.1,146.19,146.18,24.36319294]
[1751399399835,0.1,146.19,146.18,32.77097765]
[1751399400330,0.1,146.2,146.19,18.64964886]
[1751399400531,0.1,146.2,146.19,24.58967765]
[1751399400843,0.1,146.2,146.19,5.51354408]
[1751399401250,0.1,146.2,146.19,24.30535451]
[1751399402420,0.1,146.2,146.19,24.58967765]
[1751399404237,0.1,146.2,146.19,24.30535451]
[1751399406158,0.1,146.2,146.19,24.58967765]
[1751399409056,0.1,146.2,146.19,50.58967765]
[1751399412084,0.1,146.2,146.19,50.78967765]
[1751399414781,0.1,146.2,146.19,50.50535451]
[1751399416571,0.1,146.2,146.19,50.78967765]
[1751399418096,0.1,146.2,146.19,50.50535451]
[1751399418579,0.1,146.2,146.19,24.36319294]
[1751399420883,0.1,146.2,146.19,24.50535451]
[1751399424086,0.1,146.2,146.19,24.36319294]
[1751399424280,0.1,146.2,146.19,18.84964886]
[1751399424467,0.1,146.2,146.19,24.36319294]
[1751399425084,0.1,146.2,146.19,18.84964886]
[1751399425407,0.1,146.2,146.19,24.36319294]
[1751399427897,0.1,146.2,146.19,22.37633139]
[1751399432897,0.1,146.2,146.19,0.2]
[1751399434101,3.62668253,146.2,146.19,0.2]
[1751399434289,29.62668253,146.2,146.19,0.2]
[1751399435396,10.46662781,146.2,146.19,0.2]
[1751399435582,36.46662781,146.2,146.19,0.2]
[1751399436202,43.96627518,146.2,146.19,0.2]
[1751399436588,44.10843675,146.2,146.18,0.2]
[1751399436784,5.51762723,146.19,146.18,0.2]
[1751399437001,5.51762723,146.19,146.14,0.2]
[1751399437002,26.0,146.16,146.14,0.2]
[1751399437303,5.51762723,146.15,146.14,0.2]
[1751399437493,9.00346086,146.15,146.14,0.2]
[1751399437887,5.51762723,146.15,146.14,0.2]
[1751399438201,12.35991255,146.15,146.14,0.2]
[1751399438806,5.51762723,146.15,146.14,0.2]
[1751399439105,12.50207412,146.15,146.14,0.2]
[1751399440489,5.6597888,146.15,146.14,0.2]
[1751399440692,5.51762723,146.15,146.14,0.2]
[1751399441922,8.92651749,146.15,146.14,0.2]
[1751399442694,9.06867906,146.15,146.14,0.2]
[1751399443924,15.91096438,146.15,146.14,0.2]
[1751399446019,15.76880281,146.15,146.14,0.2]
[1751399446513,8.92651749,146.15,146.14,0.2]
[1751399448718,31.51762723,146.15,146.14,0.2]
[1751399451116,5.51762723,146.17,146.14,0.2]
[1751399451320,0.4109,146.15,146.14,0.2]
[1751399451497,0.4109,146.15,146.14,5.71762723]
[1751399451810,0.4109,146.15,146.14,25.99377609]
[1751399453833,0.4109,146.15,146.14,26.13593766]
[1751399455232,0.4109,146.15,146.14,20.47614886]
[1751399455429,0.4109,146.15,146.14,25.99377609]
[1751399456329,0.4109,146.15,146.14,20.47614886]
[1751399456634,0.4109,146.15,146.14,25.99377609]
[1751399457832,0.4109,146.15,146.14,1.8265]
[1751399458028,0.4109,146.15,146.14,0.2]
[1751399460509,0.4109,146.15,146.14,5.71762723]
[1751399461329,0.4109,146.15,146.14,0.2]
[1751399463312,5.92852723,146.15,146.14,0.2]
[1751399465818,12.77081255,146.15,146.14,0.2]
[1751399468135,5.92852723,146.15,146.14,0.2]
[1751399472838,0.4109,146.15,146.14,0.2]
[1751399473037,5.92852723,146.15,146.14,0.2]
[1751399477830,34.18852723,146.15,146.14,0.2]
[1751399480929,28.6709,146.15,146.14,0.2]
[1751399481130,5.92852723,146.15,146.14,0.2]
[1751399491771,0.4109,146.15,146.14,0.2]
[1751399492083,5.92852723,146.15,146.14,0.2]
[1751399492973,0.4109,146.15,146.14,0.2]
[1751399493163,5.92852723,146.15,146.14,0.2]
[1751399493669,12.77081255,146.15,146.14,0.2]
[1751399493994,5.92852723,146.15,146.14,0.2]
[1751399495175,12.77081255,146.15,146.14,0.2]
[1751399495474,5.92852723,146.15,146.14,0.2]
[1751399496779,12.77081255,146.15,146.14,0.2]
[1751399499581,41.01081255,146.15,146.14,0.2]
[1751399501513,34.16852723,146.15,146.14,0.2]
[1751399502479,5.92852723,146.15,146.14,0.2]
[1751399502681,28.6309,146.15,146.14,0.2]
[1751399502980,5.92852723,146.15,146.14,0.2]
[1751399511716,0.4109,146.15,146.14,0.2]
[1751399513516,5.92852723,146.15,146.14,0.2]
[1751399514427,0.4109,146.15,146.14,0.2]
[1751399514725,5.92852723,146.15,146.14,0.2]
[1751399522624,0.4109,146.15,146.14,25.94377609]
[1751399522923,0.4109,146.15,146.14,1.7765]
[1751399526327,0.4109,146.15,146.14,7.29412723]
[1751399526828,0.4109,146.15,146.14,1.7765]
[1751399531336,0.4109,146.15,146.14,25.94377609]
[1751399532951,0.4109,146.15,146.14,1.7765]
[1751399534926,5.92852723,146.15,146.14,0.2]
[1751399535831,0.4109,146.15,146.14,0.2]
[1751399536032,5.92852723,146.15,146.14,0.2]
[1751399544151,34.10852723,146.15,146.14,0.2]
[1751399544530,0.4109,146.15,146.14,0.2]